{"text_format":"1","workbook":"xlsx","n_sheets":1,"sheets":["Лист1"],"not_rendered":{"charts":0,"images":0,"macros":1,"external_links":0,"defined_names":3,"comments":0,"pivot_tables":0},"unopened":[],"bounds":{"document_bytes":16777216,"sheet_cells":100000,"rows_first":2000,"rows_last":500,"rows_between":2000,"halvings":0,"cell_chars":16384,"cell_head_chars":4096},"cells_cut":0,"cells_raw":0,"read":"whole","date_system":"1900"}

{"sheet":"Лист1","index":0,"n_rows":24,"n_cols":3,"rows_kept":24,"cut":false,"hidden":false,"merged":[]}
["A"]
[]
["a - Variable in class java.awt.AWTEventMulticaster",{"$f":"otst(A3)","v":0},{"$f":"A3&IF(B4,\". \"&C4,\"\")","v":"a - Variable in class java.awt.AWTEventMulticaster. "}]
[null,1,""]
["A - Static variable in class java.awt.PageAttributes.MediaType",0,{"$f":"A5&IF(B6,\". \"&C6,\"\")","v":"A - Static variable in class java.awt.PageAttributes.MediaType. The MediaType instance for Engineering A, 8 1/2 x 11 in."}]
["The MediaType instance for Engineering A, 8 1/2 x 11 in.",1,{"$f":"A6&IF(B7,\". \"&C7,\"\")","v":"The MediaType instance for Engineering A, 8 1/2 x 11 in."}]
["A - Static variable in class javax.print.attribute.standard.MediaSize.Engineering",0,"A - Static variable in class javax.print.attribute.standard.MediaSize.Engineering. Specifies the engineering A size, 8.5 inch by 11 inch."]
["Specifies the engineering A size, 8.5 inch by 11 inch.",1,"Specifies the engineering A size, 8.5 inch by 11 inch."]
["A - Static variable in class javax.print.attribute.standard.MediaSizeName",0,"A - Static variable in class javax.print.attribute.standard.MediaSizeName. A size ."]
["A size .",1,"A size ."]
["A - Static variable in class javax.swing.text.html.HTML.Tag",0,"A - Static variable in class javax.swing.text.html.HTML.Tag. "]
[null,1,""]
["A0 - Static variable in class java.awt.PageAttributes.MediaType",0,"A0 - Static variable in class java.awt.PageAttributes.MediaType. An alias for ISO_A0."]
["An alias for ISO_A0.",1,"An alias for ISO_A0."]
["A0 - Static variable in class javax.print.attribute.standard.MediaSize.ISO",0,"A0 - Static variable in class javax.print.attribute.standard.MediaSize.ISO. Specifies the ISO A0 size, 841 mm by 1189 mm."]
["Specifies the ISO A0 size, 841 mm by 1189 mm.",1,"Specifies the ISO A0 size, 841 mm by 1189 mm."]
["A1 - Static variable in class java.awt.PageAttributes.MediaType",0,"A1 - Static variable in class java.awt.PageAttributes.MediaType. An alias for ISO_A1."]
["An alias for ISO_A1.",1,"An alias for ISO_A1."]
["A1 - Static variable in class javax.print.attribute.standard.MediaSize.ISO",0,"A1 - Static variable in class javax.print.attribute.standard.MediaSize.ISO. Specifies the ISO A1 size, 594 mm by 841 mm."]
["Specifies the ISO A1 size, 594 mm by 841 mm.",1,"Specifies the ISO A1 size, 594 mm by 841 mm."]
["A10 - Static variable in class java.awt.PageAttributes.MediaType",0,"A10 - Static variable in class java.awt.PageAttributes.MediaType. An alias for ISO_A10.. An alias for ISO_A10.. An alias for ISO_A10."]
["An alias for ISO_A10.",1,"An alias for ISO_A10.. An alias for ISO_A10.. An alias for ISO_A10."]
["An alias for ISO_A10.",1,{"$f":"A23&IF(B24,\". \"&C24,\"\")","v":"An alias for ISO_A10.. An alias for ISO_A10."}]
["An alias for ISO_A10.",1,"An alias for ISO_A10."]